Workbook

Sheet العقود
A3: م | B3: اسم البائع | C3: اسم المشتري | D3: الكفيل2 | E3: جوال | F3: نوع السياره | G3: الموديل | H3: الهيكل | I3: سعر البيع | J3: سعرالشراء | K3: المربح | L3: المقدم | M3: القسط | N3: عدد الاقساط | O3: نوع السداد | P3: اجمالي الواصل مع المقدم | Q3: الخصومات | R3: المتبقي | S3: الطايف | T3: تاريخ بداية الاستحقاق ( م ) | U3: تاريخ نهاية الاستحقاق ( م ) | V3: المبلغ بدون مقدم | W3: حالة العميل | X3: تكلفة السياره | Y3: عدد الاقساط الواصله | AA3: 1 قسط | AB3: تاريخ | AC3: قسط2 | AD3: تاريخ | AE3: 3 | AF3: تاريخ | AG3: 4 | AH3: تاريخ | AI3: 5 | AJ3: تاريخ | AK3: 6 | AL3: تاريخ | AM3: 7 | AN3: تاريخ | AO3: 8 | AP3: تاريخ | AQ3: 9 | AR3: تاريخ | AS3: 10 | AT3: تاريخ | AU3: 11 | AV3: تاريخ | AW3: 12 | AX3: تاريخ | AY3: 13 | AZ3: تاريخ | BA3: 14 | BB3: تاريخ | BC3: 15 | BD3: تاريخ | BE3: 16 | BF3: تاريخ | BG3: 17 | BH3: تاريخ | BI3: 18 | BJ3: تاريخ | BK3: 19 | BL3: تاريخ | BM3: 20 | BN3: تاريخ | BO3: 21 | BP3: تاريخ | BQ3: 22 | BR3: تاريخ | BS3: 23 | BT3: تاريخ | BU3: 24 | BV3: تاريخ | BW3: 25 | BX3: تاريخ | BY3: 26 | BZ3: تاريخ | CA3: 27 | CB3: تاريخ | CC3: 28 | CD3: تاريخ | CE3: 29 | CF3: تاريخ | CG3: 30 | CH3: تاريخ | CI3: 31 | CJ3: تاريخ | CK3: 32 | CL3: تاريخ | CM3: 33 | CN3: تاريخ | CO3: 34 | CP3: تاريخ | CQ3: 35 | CR3: تاريخ | CS3: 36 | CT3: تاريخ | CU3: 37 | CV3: تاريخ | CW3: 38 | CX3: تاريخ | CY3: 39 | CZ3: تاريخ | DA3: 40 | DB3: تاريخ | DC3: 41 | DD3: تاريخ | DE3: 42 | DF3: تاريخ | DG3: 43 | DH3: تاريخ | DI3: 44 | DJ3: تاريخ | DK3: 45 | DL3: تاريخ | DM3: 46 | DN3: تاريخ | DO3: 47 | DP3: تاريخ | DQ3: 48 | DR3: تاريخ | DS3: 49 | DT3: تاريخ | DU3: 50 | DV3: تاريخ | DW3: 51 | DX3: تاريخ | DY3: 52 | DZ3: تاريخ | EA3: 53 | EB3: تاريخ | EC3: 54 | ED3: تاريخ | EE3: 55 | EF3: تاريخ | EG3: 56 | EH3: تاريخ | EI3: 57 | EJ3: تاريخ | EK3: 58 | EL3: تاريخ | EM3: 59 | EN3: تاريخ | EO3: 60 | EP3: تاريخ | EQ3: 61 | ER3: تاريخ | ES3: 62 | ET3: تاريخ | EU3: 63 | EV3: تاريخ | EW3: 64 | EX3: تاريخ | EY3: 65 | EZ3: تاريخ | FA3: 66 | FB3: تاريخ | FC3: 67 | FD3: تاريخ | FE3: 68 | FF3: تاريخ | FG3: 69 | FH3: تاريخ | FI3: 70 | FJ3: تاريخ | FK3: 71 | FL3: تاريخ | FM3: 72 | FN3: تاريخ | FO3: 73 | FP3: تاريخ | FQ3: 74 | FR3: تاريخ | FS3: 75 | FT3: تاريخ | FU3: 76 | FV3: تاريخ | FW3: 77 | FX3: تاريخ | FY3: 78 | FZ3: تاريخ | GA3: 79 | GB3: تاريخ | GC3: 80 | GD3: تاريخ | GE3: 81 | GF3: تاريخ | GG3: 82 | GH3: تاريخ | GI3: 83 | GJ3: تاريخ | GK3: 84 | GL3: تاريخ | GM3: 85 | GN3: تاريخ | GO3: 86 | GP3: تاريخ | GQ3: 87 | GR3: تاريخ | GS3: 88 | GT3: تاريخ | GU3: 89 | GV3: تاريخ | GW3: 90 | GX3: تاريخ | GY3: 91 | GZ3: تاريخ | HA3: 92 | HB3: تاريخ | HC3: 93 | HD3: تاريخ | HE3: 94 | HF3: تاريخ | HG3: 95 | HH3: تاريخ | HI3: 96 | HJ3: تاريخ | HK3: 97 | HL3: تاريخ | HM3: 98 | HN3: تاريخ | HO3: 99 | HP3: تاريخ | HQ3: 100 | HR3: تاريخ | HS3: 101 | HT3: تاريخ | HU3: 102 | HV3: تاريخ | HW3: 103 | HX3: تاريخ | HY3: 104 | HZ3: تاريخ | IA3: 105 | IB3: تاريخ | IC3: 106 | ID3: تاريخ | IE3: 107 | IF3: تاريخ | IG3: 108 | IH3: تاريخ | II3: 109 | IJ3: تاريخ | IK3: 110 | IL3: تاريخ | IM3: 111 | IN3: تاريخ | IO3: 112 | IP3: تاريخ | IQ3: 113 | IR3: تاريخ | IS3: 114 | IT3: تاريخ | IU3: 115 | IV3: تاريخ | IW3: 116 | IX3: تاريخ | IY3: 117 | IZ3: تاريخ | JA3: 118 | JB3: تاريخ | JC3: 119 | JD3: تاريخ | JE3: 120 | JF3: تاريخ | JG3: 121 | JH3: تاريخ | JI3: 122 | JJ3: تاريخ | JK3: 123 | JL3: تاريخ | JM3: 124 | JN3: تاريخ | JO3: 125 | JP3: تاريخ | JQ3: 126 | JR3: تاريخ | JS3: 127 | JT3: تاريخ | JU3: 128 | JV3: تاريخ | JW3: 129 | JX3: تاريخ | JY3: 130 | JZ3: تاريخ | KA3: 131 | KB3: تاريخ | KC3: 132 | KD3: تاريخ | KE3: 133 | KF3: تاريخ | KG3: 134 | KH3: تاريخ | KI3: 135 | KJ3: تاريخ | KK3: 136 | KL3: تاريخ | KM3: 137 | KN3: تاريخ | KO3: 138 | KP3: تاريخ | KQ3: 139 | KR3: تاريخ | KS3: 140 | KT3: تاريخ | KU3: 141 | KV3: تاريخ | KW3: 142 | KX3: تاريخ | KY3: 143 | KZ3: تاريخ | LA3: 144 | LB3: تاريخ | LC3: 145 | LD3: تاريخ | LE3: 146 | LF3: تاريخ | LG3: 147 | LH3: تاريخ | LI3: 148 | LJ3: تاريخ | LK3: 149 | LL3: تاريخ | LM3: 150 | LN3: تاريخ | LO3: 151 | LP3: تاريخ | LQ3: 152 | LR3: تاريخ | LS3: 153 | LT3: تاريخ | LU3: 154 | LV3: تاريخ | LW3: 155 | LX3: تاريخ | LY3: 156 | LZ3: تاريخ | MA3: 157 | MB3: تاريخ | MC3: 158 | MD3: تاريخ | ME3: 159 | MF3: تاريخ | MG3: 160 | MH3: تاريخ | MI3: 161 | MJ3: تاريخ | MK3: 162 | ML3: تاريخ | MM3: 163 | MN3: تاريخ | MO3: 164 | MP3: تاريخ | MQ3: 165 | MR3: تاريخ | MS3: 166 | MT3: تاريخ | MU3: 167 | MV3: تاريخ | MW3: 168 | MX3: تاريخ | MY3: 169 | MZ3: تاريخ | NA3: 170 | NB3: تاريخ | NC3: 171 | ND3: تاريخ | NE3: 172 | NF3: تاريخ | NG3: 173 | NH3: تاريخ | NI3: 174 | NJ3: تاريخ | NK3: 175 | NL3: تاريخ | NM3: 176 | NN3: تاريخ | NO3: 177 | NP3: تاريخ | NQ3: 178 | NR3: تاريخ | NS3: 179 | NT3: تاريخ | NU3: 180 | NV3: تاريخ | NW3: 181 | NX3: تاريخ | NY3: 182 | NZ3: تاريخ | OA3: 183 | OB3: تاريخ | OC3: 184 | OD3: تاريخ | OE3: 185 | OF3: تاريخ | OG3: 186 | OH3: تاريخ | OI3: 187 | OJ3: تاريخ | OK3: 188 | OL3: تاريخ | OM3: 189 | ON3: تاريخ | OO3: 190 | OP3: تاريخ | OQ3: 191 | OR3: تاريخ | OS3: 192 | OT3: تاريخ | OU3: 193 | OV3: تاريخ | OW3: 194 | OX3: تاريخ | OY3: 195 | OZ3: تاريخ | PA3: 196 | PB3: تاريخ | PC3: 197 | PD3: تاريخ | PE3: 198 | PF3: تاريخ | PG3: 199 | PH3: تاريخ | PI3: 200 | PJ3: تاريخ | PK3: 201 | PL3: تاريخ | PM3: 202 | PN3: تاريخ
A4: 1167 | F4: اكسنت | G4: 2018 | I4: 75000 | J4: 45000 | K4: =I4-J4-Q4 -> 30000 | M4: 1500 | N4: =IFERROR((V4/M4),"") -> 50 | P4: =SUM(AA4+AC4+AE4+AG4+AI4+AK4+AM4+AO4+AQ4+AS4+AW4+AY4+BA4+BE4+BG4+BI4+BK4+BM4+BO4+BQ4+BS4+BU4+BW4+BY4+CA4+CC4+CE4+CG4+CI4+CK4+CM4+CO4+CQ4+CS4+CU4+CW4+CY4+DA4+DE4+DG4+DI4+DK4+DM4+DQ4+DS4+DU4+DW4+DY4+EA4+EC4+EE4+EG4+EI4+EK4+EM4+EO4+EQ4+ES4+EU4+EW4+EY4+FA4+FC4+FE4+FG4+FI4+FK4+FM4+FO4+FQ4+FS4+FU4+FW4+FY4+GA4+GC4+GE4+GG4+GI4+GK4+GM4+GO4+GQ4+GS4+GU4+GW4+GY4+HA4+HC4+HG4+HI4+HK4+HM4+HO4+HS4+HQ4+HU4+HW4+HY4+IA4+IC4+IE4+IG4+II4+IK4+IM4+IO4+IQ4+IS4+IU4+IW4+IY4+JA4+JC4+JE4+JG4+JI4+JK4+JM4+JO4+JQ4+JS4+JU4+JW4+JY4+KA4+KC4+KE4+KG4+KI4+KK4+KM4+KO4+KQ4+KS4+KU4+KW4+KY4+LA4+LC4+LE4+LG4+LI4+LK4+LM4+LO4+LQ4+LS4+LU4+LW4+LY4+MA4+MC4+ME4+MG4+MI4+MK4+MM4+MO4+MQ4+MS4+MU4+MW4+MY4+NA4+NC4+NE4+NG4+NI4+NK4+NM4+NO4+NQ4+NS4+NU4+NW4+NY4+OA4+OC4+OE4+OG4+OI4+OK4+OM4+OO4+OQ4+OS4+OU4+OW4+OY4+PA4+PC4+PE4+PG4+PI4+PK4+AU4+BC4+DC4+DO4+HE4+PM4)+Q4+L4 -> 6000 | R4: =I4-P4 -> 69000 | S4: =IFERROR(IF($B4="","",$M4*IF(DATEDIF($Z4,TODAY(),"m")>$N4,$N4,DATEDIF($Z4,TODAY(),"m"))-$P4+L4),"") ->  | T4: 2019-02-27 | U4: =IF(T4="","",EOMONTH(T4,N4-1)) -> 2023-03-31 | V4: =I4-L4 -> 75000 | W4: =IFERROR(IF(AND(R4=S4,(R4+S4)>0),"كامل المبلغ طايف علي العميل",IF(AND(S4<R4,(S4>0)),"العميل متأخر عن السداد",IF(AND(R4=S4,(R4+S4)=0),"خالص",IF(AND(S4<R4,(S4<0)),"تم السداد مبكر",IF(AND(S4=0,(R4<=I4)),"العميل منتظم بالسداد",""))))),"") ->  | X4: 40000 | Y4: =COUNTA(AA4:HY4)-SUM(IF(TypeCell(AA4:HY4)=7,1,0)) -> 4 | Z4: =IF(T4="","",DATE(YEAR(T4),MONTH(T4)-1,DAY(T4))) -> 2019-01-27 | AA4: 1500 | AB4: 2019-02-28 | AC4: 1500 | AD4: 2019-03-30 | AE4: 1500 | AF4: 2019-05-01 | AG4: 1500 | AH4: 2019-05-30
A5: 1168 | F5: يارس | G5: 2018 | I5: 65000 | J5: 45000 | K5: =I5-J5-Q5 -> 20000 | M5: 2000 | N5: =IFERROR((V5/M5),"") -> 32.5 | P5: 8000 | R5: =I5-P5 -> 57000 | T5: 2019-01-14 | U5: 2021-08-31 | V5: =I5-L5 -> 65000 | X5: 35000 | Y5: =COUNTA(AA5:HY5)-SUM(IF(TypeCell(AA5:HY5)=7,1,0)) -> 4 | Z5: 2018-12-14 | AA5: 2000 | AB5: 2019-01-18 | AC5: 2000 | AD5: 2019-02-27 | AE5: 2000 | AF5: 2019-04-21 | AG5: 2000 | AH5: 2019-04-21
A6: 1169 | F6: يارس | G6: 2018 | I6: 90000 | J6: 50000 | K6: =I6-J6-Q6 -> 40000 | M6: 1500 | N6: =IFERROR((V6/M6),"") -> 60 | P6: 7500 | R6: =I6-P6 -> 82500 | T6: 2019-01-27 | U6: 2023-12-31 | V6: =I6-L6 -> 90000 | X6: 45000 | Y6: =COUNTA(AA6:HY6)-SUM(IF(TypeCell(AA6:HY6)=7,1,0)) -> 5 | Z6: 2018-12-27 | AA6: 1500 | AB6: 2019-01-30 | AC6: 1500 | AD6: 2018-02-27 | AE6: 1500 | AF6: 2019-03-30 | AG6: 1500 | AH6: 2019-05-01 | AI6: 1500 | AJ6: 2019-05-30
A7: 1170 | F7: صني | G7: 2019 | I7: 75000 | J7: 44000 | K7: =I7-J7-Q7 -> 31000 | L7: 0 | M7: 1500 | N7: =IFERROR((V7/M7),"") -> 50 | P7: 4500 | R7: =I7-P7 -> 70500 | T7: 2019-02-27 | U7: =IF(T7="","",EOMONTH(T7,N7-1)) -> 2023-03-31 | V7: =I7-L7 -> 75000 | X7: 37000 | Y7: =COUNTA(AA7:HY7)-SUM(IF(TypeCell(AA7:HY7)=7,1,0)) -> 3 | Z7: 2019-01-27 | AA7: 1500 | AB7: 2019-04-06 | AC7: 1500 | AD7: 2019-04-06 | AE7: 1500 | AF7: 2019-05-19
A8: 466 | D8: سعيد حماد عيد البذالي | E8: 0527295077 | F8: اكورد | G8: 2015 | I8: 200000 | J8: 130000 | K8: 70000 | L8: 0 | M8: 2000 | N8: 100 | P8: 4000 | R8: 196000 | T8: 2019-04-27 | U8: 2027-07-31 | V8: 200000 | X8: 100000 | Y8: =COUNTA(AA8:HY8)-SUM(IF(TypeCell(AA8:HY8)=7,1,0)) -> 2 | Z8: 2019-03-27 | AA8: 2000 | AB8: 2019-05-23 | AC8: 2000 | AD8: 2019-05-30
A9: 467 | F9: اكسبلور | G9: 2015 | I9: 200000 | J9: 130000 | K9: 70000 | L9: 0 | M9: 2000 | N9: 100 | P9: 4000 | R9: 196000 | T9: 2019-04-27 | U9: 2027-07-31 | V9: 200000 | X9: 104500 | Y9: =COUNTA(AA9:HY9)-SUM(IF(TypeCell(AA9:HY9)=7,1,0)) -> 2 | Z9: 2019-03-27 | AA9: 2000 | AB9: 2019-05-23 | AC9: 2000 | AD9: 2019-05-30
A10: 468 | F10: ازيرا + سنتافي | G10: 2013+2018 | I10: 440000 | J10: 260000 | K10: 180000 | M10: 4000 | N10: 110 | P10: 8000 | R10: 432000 | T10: 2019-04-27 | U10: 2028-05-31 | V10: 440000 | X10: 198700 | Y10: =COUNTA(AA10:HY10)-SUM(IF(TypeCell(AA10:HY10)=7,1,0)) -> 2 | Z10: 2019-03-27 | AA10: 4000 | AB10: 2019-05-23 | AC10: 4000 | AD10: 2019-05-30
